Cogmind - Beta 13 @@@ ROGUE MODE // 2024.03.24 @ 15:47:18 Player: Oldman Pu Result: Destroyed by 4I-P6Z(R) with Subdweller Machine Gun Performance ------------- Evolutions (0) 0 Regions Visited (2) 400 Robots Destroyed (27) 135 Value Destroyed (617) 617 Prototype IDs (0) 0 Alien Tech Used (0) 0 Bonus (0) 0 TOTAL SCORE: 1152 Bonus ------- None Cogmind --------- Core Integrity 0/250 Matter 287/300 Energy 85/100 System Corruption 0% Temperature Cool (0) Movement Core (800) Ox15 Location -10/Subcaves Parts ------- > --- POWER (1) -------- (None) > --- PROPULSION (2) --- (None) > --- UTILITY (2) ------ High-capacity Storage Unit Core Shielding > --- WEAPON (2) ------- Beam Cannon Assault Rifle > --- INVENTORY (20) --- Ion Engine Ion Engine Heat Sink Cooling System Cooling System Cooling System Cooling System Core Shielding Core Shielding Core Shielding Light Armor Plating Subdweller Machine Gun Improved Light Cannon Improved Light Cannon Improved Light Cannon Improved Light Cannon Peak State ------------ > --- POWER ------------ Ion Engine > --- PROPULSION ------- Light Treads Light Treads > --- UTILITY ---------- Large Storage Unit Core Shielding > --- WEAPON ----------- Medium Laser Improved Light Cannon > --- INVENTORY -------- Ion Engine Wheel Wheel Cooling System Cooling System Cooling System Cooling System Core Shielding Core Shielding Core Shielding Assault Rifle Improved Light Cannon Improved Light Cannon Improved Light Cannon [Rating: 10] Favorites ----------- Power Ion Engine Engine Ion Engine Propulsion Light Treads Treads Light Treads Wheel Wheel Utility Core Shielding Storage High-capacity Storage Unit Protection Core Shielding Weapon Assault Rifle Energy Gun Medium Laser Energy Cannon Beam Cannon Ballistic Gun Assault Rifle Ballistic Cannon Improved Light Cannon Build | -11 -10 -10 ------- Run | Yrd Mat Sub Slots Evolved . | . . . Power . | . . . Propulsion . | . . . Utility . | . . . Weapon . | . . . Parts Attached 23 | 6 12 5 Power 3 | 1 2 . Engine 3 | 1 2 . Core . | . . . Reactor . | . . . Propulsion 6 | 2 2 2 Treads 4 | 2 . 2 Leg . | . . . Wheel 2 | . 2 . Hover . | . . . Flight . | . . . Utility 5 | 1 3 1 Device . | . . . Storage 3 | 1 2 . Processor . | . . . Hackware . | . . . Protection 2 | . 1 1 Artifact . | . . . Weapon 9 | 2 5 2 Energy Gun 2 | 1 1 . Energy Cannon 1 | . . 1 Ballistic Gun 5 | 1 3 1 Ballistic Cannon 1 | . 1 . Launcher . | . . . Special Weapon . | . . . Impact Weapon . | . . . Slashing Weapon . | . . . Piercing Weapon . | . . . Special Melee Weapon . | . . . Unidentified Prototypes . | . . . Parts Lost 7 | . . 7 Power 1 | . . 1 Propulsion 4 | . . 4 Utility . | . . . Weapon 2 | . . 2 Highest Loss Streak 4 | . . 4 To Critical Strikes . | . . . Average Slot Usage (%) 98 | . 98 96 Engine 13 | . 14 13 Treads 14 | . 16 7 Wheel 12 | . 11 18 Storage 14 | . 14 14 Protection 13 | . 12 14 Energy Gun 13 | . 14 10 Ballistic Gun 13 | . 13 14 Naked Turns . | . . . Heaviest Build 51 | 14 50 51 Greatest Support 40 | 40 40 40 Greatest Overweight (x) 4 | 4 2 4 Average Overweight (x) 1 | 2 1 1 Largest Inventory Capacity 20 | 8 20 20 Average Capacity 17 | 7 18 20 Most Carried 19 | 3 19 19 Average Carried 14 | 2 14 18 Final Capacity 20 | 8 20 20 Final Carried 19 | 3 19 16 Class Distribution -------------------- 100% | Mutant Dominant Class ---------------- Mutant | -10/Materials Mutant | -10/Subcaves Resources | -11 -10 -10 ----------- Run | Yrd Mat Sub Matter Collected 725 | 176 456 93 Remotely . | . . . Salvage Created 890 | . 744 146 Parts 55 | . 50 5 Haulers Intercepted 2 | . 2 . Recyclers Shooed 2 | . 2 . Parts Field Recycled . | . . . Retrieved Matter . | . . . Parts Self-Destructed . | . . . Prevented . | . . . Kills | -11 -10 -10 ------- Run | Yrd Mat Sub Combat Hostiles Destroyed 20 | . 17 3 Guns 19 | . 16 3 Cannons 1 | . 1 . Classes Destroyed 8 | . 7 1 Worker 1 | . 1 . Tunneler 1 | . 1 . Hauler 2 | . 2 . Recycler 1 | . 1 . Watcher 2 | . 2 . Swarmer 6 | . 6 . Grunt 11 | . 11 . Subdweller 3 | . . 3 Best Kill Streak 5 | . 5 2 Combat Bots Only 4 | . 4 2 Max Kills in Single Turn 2 | . 2 1 Gunslinging . | . . . Exploded . | . . . Melee . | . . . Uniques/NPCs Destroyed . | . . . Combat | -11 -10 -10 -------- Run | Yrd Mat Sub Hostile Shots Fired 129 | . 97 32 Missed 34 | . 25 9 Damage Taken 1243 | . 754 489 Core 265 | . 202 63 Absorbed by Shields . | . . . Redirected to Shielding 36 | . 23 13 Core Remaining (%) 100 | 100 . . Volleys Fired 111 | . 90 21 Largest 2 | . 2 2 Hottest 89 | . 89 80 Shots Fired 220 | . 180 40 Gun 205 | . 171 34 Cannon 15 | . 9 6 Launcher . | . . . Special . | . . . Kinetic 110 | . 90 20 Thermal 110 | . 90 20 Explosive . | . . . Electromagnetic . | . . . Robot Hit Streak 17 | . 10 17 Robot Miss Streak 3 | . 3 1 Penetration Max . | . . . Secondary Targets 1 | . 1 . Max Gunslinging Chain 1 | . 1 . Shots Hit Robots 151 | . 117 34 Core Hits 47 | . 40 7 Critical Kills . | . . . Critical Parts Destroyed . | . . . Critical Strikes 8 | . 7 1 Burn 7 | . 6 1 Blast 1 | . 1 . Melee Attacks . | . . . Impact . | . . . Slashing . | . . . Piercing . | . . . Sneak Attacks . | . . . Combat Hostiles . | . . . Follow-up Attacks . | . . . Damage Inflicted 1834 | . 1506 328 Guns 1722 | . 1394 328 Cannons 103 | . 103 . Explosions . | . . . Melee . | . . . Ramming 9 | . 9 . Kinetic 886 | . 719 167 Thermal 939 | . 778 161 Explosive . | . . . Electromagnetic . | . . . Impact . | . . . Slashing . | . . . Piercing . | . . . Highest Corruption . | . . . Average Corruption . | . . . Corruption Purged . | . . . Corruption Blocked . | . . . Overload Shots . | . . . Overflow Damage . | . . . Projectiles . | . . . Explosions . | . . . Melee . | . . . Knockbacks 4 | . 4 . Impact . | . . . Kinetic 4 | . 4 . Secondary . | . . . Self-Inflicted Damage 4 | . 4 . Shots . | . . . Rammed 1 | . 1 . Targets Rammed 1 | . 1 . Kicked . | . . . Crushed . | . . . Highest Temperature 192 | . 192 . Average Temperature 45 | . 45 . Received Heat Transfer 366 | . 306 60 Siege Activations . | . . . Robots Corrupted . | . . . Combat Hostiles . | . . . Parts Fried . | . . . Impact Corruptions . | . . . Robots Melted 1 | . 1 . Combat Hostiles . | . . . Parts Melted 5 | . 3 2 Heat Transferred 3293 | . 2738 555 Parts Sabotaged . | . . . Parts Stolen . | . . . Parts Stripped . | . . . Power Chain Reactions . | . . . Alert | -11 -10 -10 ------- Run | Yrd Mat Sub Peak Influence 230 | . 230 . Initial . | . . . Average 106 | . 113 . Maximum Alert Level 1 | . 1 . Low Security (%) 89 | 100 88 . Level 1 10 | . 11 . Level 2 . | . . . Level 3 . | . . . Level 4 . | . . . Level 5 . | . . . High Security . | . . . Max Security . | . . . Squads Dispatched 5 | . 5 . Investigation 1 | . 1 . Extermination . | . . . Reinforcement 4 | . 4 . Assault . | . . . Garrison . | . . . Intercept . | . . . Searches Triggered . | . . . Construction Impeded . | . . . Haulers Reinforced . | . . . Active Scanning Responses . | . . . Cargo Convoy Interrupts . | . . . Stealth | -11 -10 -10 --------- Run | Yrd Mat Sub Distress Signals 1 | . 1 . Communications Jammed . | . . . Distress Signals . | . . . Times Spotted 29 | . 25 4 Peak Tracking Total 3 | . 3 2 Tactical Retreats 1 | . 1 . Traps | -11 -10 -10 ------- Run | Yrd Mat Sub Traps Triggered 1 | . 1 . Indirectly . | . . . Trap Hack Attempts . | . . . Triggered . | . . . Disarmed . | . . . Reprogrammed . | . . . Reused . | . . . Traps Extracted . | . . . Installed . | . . . Triggered . | . . . Machines | -11 -10 -10 ---------- Run | Yrd Mat Sub Machines Disabled . | . . . Max in Single Turn . | . . . Machines Repaired . | . . . Machines Dismantled . | . . . Machines Sabotaged . | . . . Overloaded Fab Kills . | . . . Hacking | -11 -10 -10 --------- Run | Yrd Mat Sub Machines Accessed 4 | . 4 . Terminals 4 | . 4 . Fabricators . | . . . Repair Stations . | . . . Recycling Units . | . . . Scanalyzers . | . . . Garrison Access . | . . . Total Hacks 6 | . 6 . Successful 5 | . 5 . Failed 1 | . 1 . Catastrophic . | . . . Database Lockouts . | . . . Manual . | . . . Terminals 6 | . 6 . Fabricators . | . . . Repair Stations . | . . . Recycling Units . | . . . Scanalyzers . | . . . Garrison Access . | . . . Terminal Hacks 5 | . 5 . Record 3 | . 3 . Locate Traps 1 | . 1 . Dispatch Records 1 | . 1 . Fabricator Hacks . | . . . Repair Station Hacks . | . . . Recycling Unit Hacks . | . . . Scanalyzer . | . . . Garrison Access Hacks . | . . . Unauthorized Hacks . | . . . Terminals . | . . . Fabricators . | . . . Repair Stations . | . . . Recycling Units . | . . . Scanalyzers . | . . . Garrison Access . | . . . Data Cores Recovered . | . . . Used . | . . . Hacking Detections 3 | . 3 . Full Trace Events . | . . . Feedback Events . | . . . Feedback Blocked . | . . . Robot Schematics Acquired . | . . . Robots Built . | . . . Authchips . | . . . Time . | . . . Total Robot Build Rating . | . . . Part Schematics Acquired . | . . . Parts Built . | . . . Authchips . | . . . Time . | . . . Total Part Build Rating . | . . . Parts Repaired . | . . . Time . | . . . Parts Recycled . | . . . Recycled Matter . | . . . Retrieved Matter . | . . . Retrieved Components . | . . . Parts Scanalyzed . | . . . Part Schematics Acquired . | . . . Parts Damaged . | . . . Bothacking | -11 -10 -10 ------------ Run | Yrd Mat Sub Used RIF Installer . | . . . Robots Hacked . | . . . Non-combat . | . . . Combat . | . . . Robot Hacks Applied . | . . . Relay Couplers Released . | . . . Fabnet Peak Effective % . | . . . Robots Rewired . | . . . Allies Hacked . | . . . Hacks Repelled . | . . . Allies | -11 -10 -10 -------- Run | Yrd Mat Sub Total Allies . | . . . Largest Group . | . . . Highest-Rated Group . | . . . Highest-Rated Ally . | . . . Total Orders . | . . . Ally Attacks . | . . . Total Damage . | . . . Kills . | . . . Allies Corrupted . | . . . Allies Melted . | . . . Intel | -11 -10 -10 ------- Run | Yrd Mat Sub Robot Analysis Total . | . . . Derelict Logs Recovered . | . . . Drone Launches . | . . . Drone Recoveries . | . . . Exploration | -11 -10 -10 ------------- Run | Yrd Mat Sub Turns Passed 2036 | 111 1569 356 Spaces Moved 1070 | 49 814 207 Core 48 | 48 . . Treads 374 | 1 340 33 Legs . | . . . Wheels 648 | . 474 174 Hover . | . . . Flight . | . . . Fastest Speed 50 | 50 110 110 Average Speed 146 | 191 147 133 Slowest Speed 250 | 250 240 240 Overloaded Moves . | . . . Propulsion Burnouts . | . . . Robots Hopped . | . . . Cave-ins Triggered . | . . . Exploration Rate (%) 40 | 5 97 18 Regions Visited 2 Branch Regions 1 Pre-discovered Areas . | . . . Known Exits Taken . | . . . Unknown Exits Taken 2 | 1 1 . Scrap Searched . | . . . Spaces Dug . | . . . Terrain Destroyed 1 | . 1 . Melee . | . . . Projectile 1 | . 1 . AOE . | . . . Terrain Rammed . | . . . Walls Destroyed . | . . . Machines Disabled . | . . . Actions | -11 -10 -10 --------- Run | Yrd Mat Sub Total 1310 | 64 999 247 Wait 80 | 7 60 13 Move 1068 | 48 813 207 Hop . | . . . Pick Up 20 | 3 16 1 Fast Attach 7 | 6 1 . Attach 4 | . . 4 Detach . | . . . Swap 12 | . 11 1 Drop 7 | . 7 . Fire 111 | . 90 21 Melee . | . . . Ram 1 | . 1 . Kick . | . . . Crush . | . . . Escape Stasis . | . . . Rewire . | . . . Trap . | . . . Miscellaneous . | . . . Route ------- -11/Scrapyard -10/Materials (discovered 5 exits: [*Mat x3] / [*Min] / [*Sub]) -10/Subcaves History --------- Turn | Location | Event 32 | -11/Scrapyard | Discovered new exit (range 16) 112 | -11/Scrapyard | Entered Materials 314 | -10/Materials | Build established: Mutant 624 | -10/Materials | Discovered new exit (range 16) 704 | -10/Materials | Core integrity fell below 50% 749 | -10/Materials | Discovered new exit (range 15) 1177 | -10/Materials | Discovered new exit (range 6) 1201 | -10/Materials | Discovered new exit (range 12) 1235 | -10/Materials | Core integrity fell below 20% 1363 | -10/Materials | Discovered new exit (range 7) 1681 | -10/Materials | Entered Subcaves 2037 | -10/Subcaves | Destroyed by 4I-P6Z(R) with Subdweller Machine Gun Last Messages --------------- 01714_ Acquired 5 matter. 01775_ Acquired 7 matter. 01806_ DZ-AA0(u) tweaks Twisted Machinery. 01879_ Z1-P6B(R) destroyed. 01893_ 8M-0ZP(R) affixes Scrap Shield Fragment to Scrap Shield. 01898_ Wheel destroyed. 01898_ 8M-0ZP(R) suffers critical hit (Burn). 01898_ Disposable Heat Sink melted. 01898_ Sub. Optics melted. 01898_ 8M-0ZP(R) destroyed. 01904_ Acquired 28 matter. 01906_ Acquired 10 matter. 01929_ Wheel destroyed. 01931_ Med. Laser destroyed. 01934_ P5-N84(R) destroyed. 01939_ Acquired 33 matter. 01944_ Acquired Sub. Machine Gun. 02021_ Ion Engine destroyed. 02025_ Lgt. Treads destroyed. 02031_ Assault Rifle destroyed. Map ----- +----------------------------------------------------+ | ??????????????????????????????????????## | | ?????????????????????????????????????## | | ?????????????????????????????????????# | | ?????????????????????????????????????# | | ?????????????????????????????????????## #### | | ??????????????????????????????????????# ##??? | | ??????????????????######?????????????## ##???? | | ????????????????### ""######?####???# ##???# | | ????????????????#" "" # ### ##?## #### | | ???????????????#"""### ### | | ?????????????????????## | | ?????????????????????## ### & | | ?????????????????????# ###?# %%& ## | | ???????????????????###" ##### #### ##?? | | ???????????????????# "# ## ## #??#######???? | | ???????????????????## ### #########????? | | ???????????????????#" #?# #### ? | | ???????????????????## &!# ### | | ????????????????????# & ##"" | | ????????????????????# !/##" | | ???????????????????## "" ## ## # | | ???????????????????# " ## ##??? ## | | ???????????????????## " ## ## ##??????? | | ???????????????????#""""" ### ####? ##???????? | | ???????????????????#"" R" ## ##???? ###????????? | | ???????????????????#""""@######?????##??????????? | | ???????????????????##" #??????????????????????? | | ???????????????????#" ##??????????????????????? | | ???????????????????## #???????????????????????? | | ????????????????????# #???????????????????????? | | ???????????????????? ##???????????????????????? | | ???????????????????# "?????????????????????????? | | ???????????????????# "?????????????????????????? | | ???????????????????# ?????????????????????????? | | ???????????????????# ??????????????????????????? | | ??????????????????? ??????????????????????????? | | ??????????????????? ???????????????????????????? | | ?????????????????? ????????????????????????????? | | ?????????????????? ?????????????????????????????? | | ????????????????????????????????????????????????? | | ????????????????????????????????????????????????? | | ????????????????????????????????????????????????? | | ????????????????????????????????????????????????? | | ????????????????????????????????????????????????? | | ????????????????????????????????????????????????? | | ????????????????????????????????????????????????? | | ????????????????????????????????????????????????? | | ????????????????????????????????????????????????? | | ????????????????????????????????????????????????? | | ????????????????????????????????????????????????? | +----------------------------------------------------+ Best States ------------- Heat Dissipation 25 Energy Generation 10 Energy Capacity 250 Matter Stores 300 Matter Capacity 300 Sight Range 16 Terrain Scan Density 10 Core Shielding 20 Evasion (%) 50 Recoil Reduction 2 Item Schematics ----------------- None Robot Schematics ------------------ None Fabricated ------------ Nothing Alien Tech Used ----------------- None Achievements -------------- None Challenges ------------ None Game ------ Seed ReflectiveRelayStreamer Manual? 0 Play Time 00:15:32 Cumulative 203.1 hours Start 2024.03.24 @ 15:34:07 End 2024.03.24 @ 15:47:18 Sessions 1 Manual Loads 0 Difficulty Rogue Special Mode None Game No. 156 Rogue 144 Adventurer 12 Explorer 0 Win Type - Total 1 Types 1/0/0/0/0/0/0/0/0 Lore% 27 Gallery% 44 Achievement% 32 Wizard Run 0 Options --------- Layout 1 ASCII 0 Keyboard 0 Movement Mouse Keybinds 0 Fullscreen 1 Font 32/SmallcapsGlow Map View 77x35 Zoom Use 0% Tactical HUD 1 Map Filters NONE Filters NONE Steam 1 RUN: ea8a244d-a894-44f8-8db1-6f6224c7f6e5